[Event "*** SCC Grand Prix: Titled Tuesday Blitz"]
[Site "Chess.com"]
[Date "2020.08.04"]
[Round "10"]
[White "Hangar-18"]
[Black "Sn00pPawn"]
[Result "1-0"]
[WhiteElo "2374"]
[BlackElo "1998"]
[TimeControl "180+1"]
[EndTime "15:37:37 PDT"]
[Termination "Hangar-18 won by checkmate"]

1. Nf3 {[%clk 0:03:00.9]} 1... Nf6 {[%clk 0:02:59.5]} 2. g3 {[%clk 0:03:01.3]}
2... g6 {[%clk 0:02:59.9]} 3. Bg2 {[%clk 0:03:01.1]} 3... Bg7 {[%clk 0:02:59.9]}
4. O-O {[%clk 0:03:01.7]} 4... O-O {[%clk 0:02:59.8]} 5. c4 {[%clk 0:03:02.4]}
5... d6 {[%clk 0:02:59.8]} 6. Nc3 {[%clk 0:03:00.5]} 6... Nc6 {[%clk 0:02:56.5]}
7. Rb1 {[%clk 0:02:59.9]} 7... a5 {[%clk 0:02:39.4]} 8. a3 {[%clk 0:02:57.5]}
8... e5 {[%clk 0:02:38.8]} 9. d3 {[%clk 0:02:57.8]} 9... Re8 {[%clk 0:02:36.1]}
10. Nd2 {[%clk 0:02:54.8]} 10... Ne7 {[%clk 0:02:21.4]} 11. Nd5 {[%clk
0:02:44.4]} 11... c6 {[%clk 0:02:12.2]} 12. Nxf6+ {[%clk 0:02:40.7]} 12... Bxf6
{[%clk 0:02:13.1]} 13. b4 {[%clk 0:02:37.9]} 13... axb4 {[%clk 0:02:11.2]} 14.
axb4 {[%clk 0:02:38.8]} 14... Bg7 {[%clk 0:02:08.8]} 15. b5 {[%clk 0:02:34.8]}
15... d5 {[%clk 0:02:05.1]} 16. bxc6 {[%clk 0:01:56.1]} 16... bxc6 {[%clk
0:02:03.1]} 17. Bb2 {[%clk 0:01:54.1]} 17... Be6 {[%clk 0:01:41.8]} 18. Qb3
{[%clk 0:01:36.2]} 18... Qd7 {[%clk 0:01:25.5]} 19. Ra1 {[%clk 0:01:27.9]} 19...
Rab8 {[%clk 0:01:21.4]} 20. Qc2 {[%clk 0:01:27.7]} 20... Rb7 {[%clk 0:01:13.8]}
21. Nb3 {[%clk 0:01:16.7]} 21... Rbb8 {[%clk 0:00:44.1]} 22. Nc5 {[%clk
0:01:15.9]} 22... Qc8 {[%clk 0:00:43.5]} 23. Ra7 {[%clk 0:01:09.2]} 23... Bh3
{[%clk 0:00:42.1]} 24. Rfa1 {[%clk 0:01:01.6]} 24... Bxg2 {[%clk 0:00:41.1]} 25.
Kxg2 {[%clk 0:01:02.5]} 25... Nf5 {[%clk 0:00:38.3]} 26. e4 {[%clk 0:00:34.2]}
26... Nd4 {[%clk 0:00:36]} 27. Bxd4 {[%clk 0:00:33.9]} 27... exd4 {[%clk
0:00:35.8]} 28. R1a6 {[%clk 0:00:29.2]} 28... Bf8 {[%clk 0:00:28.1]} 29. Nd7
{[%clk 0:00:28.5]} 29... Rb7 {[%clk 0:00:23.1]} 30. Nf6+ {[%clk 0:00:27.4]}
30... Kh8 {[%clk 0:00:19.6]} 31. Nxe8 {[%clk 0:00:27.4]} 31... Rxa7 {[%clk
0:00:19.8]} 32. Rxa7 {[%clk 0:00:27.7]} 32... Qxe8 {[%clk 0:00:19.9]} 33. cxd5
{[%clk 0:00:21.4]} 33... cxd5 {[%clk 0:00:19.2]} 34. exd5 {[%clk 0:00:18.1]}
34... Qb8 {[%clk 0:00:19.4]} 35. Qc7 {[%clk 0:00:16.5]} 35... Qb5 {[%clk
0:00:19.1]} 36. Qxf7 {[%clk 0:00:16.1]} 36... Qc5 {[%clk 0:00:17.8]} 37. Qxh7#
{[%clk 0:00:15.9]} 1-0

[Event "*** SCC Grand Prix: Titled Tuesday Blitz"]
[Site "Chess.com"]
[Date "2020.08.04"]
[Round "10"]
[White "Klavdia_Nik"]
[Black "PawnEatingZombie"]
[Result "1-0"]
[WhiteElo "2030"]
[BlackElo "2212"]
[TimeControl "180+1"]
[EndTime "15:37:40 PDT"]
[Termination "Klavdia_Nik won on time"]

1. Nf3 {[%clk 0:03:00.9]} 1... d5 {[%clk 0:02:59.5]} 2. c4 {[%clk 0:03:01.2]}
2... e6 {[%clk 0:02:59.6]} 3. b3 {[%clk 0:03:01.3]} 3... Nf6 {[%clk 0:02:55.4]}
4. Bb2 {[%clk 0:03:01]} 4... Bd6 {[%clk 0:02:53.9]} 5. g3 {[%clk 0:03:01.1]}
5... b6 {[%clk 0:02:53.2]} 6. Bg2 {[%clk 0:03:00.7]} 6... Bb7 {[%clk 0:02:53.8]}
7. O-O {[%clk 0:02:54.1]} 7... Nbd7 {[%clk 0:02:53.8]} 8. d4 {[%clk 0:02:52.2]}
8... O-O {[%clk 0:02:49.8]} 9. Nc3 {[%clk 0:02:52.2]} 9... a6 {[%clk 0:02:40.3]}
10. Qc2 {[%clk 0:02:48.9]} 10... Qe7 {[%clk 0:02:37.1]} 11. Rad1 {[%clk
0:02:48.2]} 11... Rac8 {[%clk 0:02:34.7]} 12. cxd5 {[%clk 0:02:40.5]} 12... exd5
{[%clk 0:02:32.8]} 13. e3 {[%clk 0:02:38.2]} 13... Rfe8 {[%clk 0:02:30.2]} 14.
Nh4 {[%clk 0:02:17.7]} 14... g6 {[%clk 0:02:29.2]} 15. Bh3 {[%clk 0:02:11.8]}
15... Rcd8 {[%clk 0:02:09.7]} 16. Nf3 {[%clk 0:01:51.2]} 16... h5 {[%clk
0:01:39]} 17. Nb1 {[%clk 0:01:07.5]} 17... c5 {[%clk 0:01:07.8]} 18. dxc5 {[%clk
0:01:01.8]} 18... bxc5 {[%clk 0:01:06.6]} 19. Nc3 {[%clk 0:01:00.2]} 19... d4
{[%clk 0:01:02.3]} 20. Bg2 {[%clk 0:00:38.8]} 20... dxc3 {[%clk 0:00:57.8]} 21.
Bxc3 {[%clk 0:00:36.7]} 21... Ne5 {[%clk 0:00:37.6]} 22. Nxe5 {[%clk 0:00:24.5]}
22... Bxg2 {[%clk 0:00:31.9]} 23. Kxg2 {[%clk 0:00:23]} 23... Bxe5 {[%clk
0:00:31.1]} 24. Ba5 {[%clk 0:00:17.3]} 24... Rxd1 {[%clk 0:00:29]} 25. Rxd1
{[%clk 0:00:16]} 25... Bc7 {[%clk 0:00:28.9]} 26. Bc3 {[%clk 0:00:14.8]} 26...
Ne4 {[%clk 0:00:26.9]} 27. Bb2 {[%clk 0:00:14.8]} 27... Bb6 {[%clk 0:00:14.3]}
28. f3 {[%clk 0:00:13.9]} 28... Nf6 {[%clk 0:00:04.4]} 29. Qc3 {[%clk 0:00:11]}
29... Bd8 {[%clk 0:00:04.4]} 30. e4 {[%clk 0:00:10.4]} 1-0

[Event "*** SCC Grand Prix: Titled Tuesday Blitz"]
[Site "Chess.com"]
[Date "2020.08.04"]
[Round "10"]
[White "Beca95"]
[Black "rasmussvane"]
[Result "0-1"]
[WhiteElo "2880"]
[BlackElo "2883"]
[TimeControl "180+1"]
[EndTime "15:37:46 PDT"]
[Termination "rasmussvane won on time"]

1. Nc3 {[%clk 0:03:00.9]} 1... d5 {[%clk 0:02:57.9]} 2. d4 {[%clk 0:03:00.4]}
2... Nf6 {[%clk 0:02:58]} 3. Bf4 {[%clk 0:03:00.4]} 3... c5 {[%clk 0:02:58.4]}
4. e3 {[%clk 0:03:00.6]} 4... cxd4 {[%clk 0:02:58.9]} 5. exd4 {[%clk 0:03:00.3]}
5... a6 {[%clk 0:02:59.5]} 6. h3 {[%clk 0:03:00.1]} 6... Nc6 {[%clk 0:02:59.5]}
7. Nf3 {[%clk 0:02:59.6]} 7... Bf5 {[%clk 0:02:58]} 8. a3 {[%clk 0:02:54.1]}
8... e6 {[%clk 0:02:57.4]} 9. Nh4 {[%clk 0:02:53.6]} 9... Be4 {[%clk 0:02:54.9]}
10. Nxe4 {[%clk 0:02:49.3]} 10... dxe4 {[%clk 0:02:42.7]} 11. g3 {[%clk
0:02:45.9]} 11... Qxd4 {[%clk 0:02:38.7]} 12. c3 {[%clk 0:02:44.4]} 12... Qb6
{[%clk 0:02:35.8]} 13. Qc2 {[%clk 0:02:42.8]} 13... Nd5 {[%clk 0:02:29.3]} 14.
Bc1 {[%clk 0:02:33.8]} 14... e3 {[%clk 0:02:12.2]} 15. f4 {[%clk 0:02:32.9]}
15... Rc8 {[%clk 0:02:09]} 16. Nf3 {[%clk 0:02:31]} 16... Bd6 {[%clk 0:02:00.6]}
17. Be2 {[%clk 0:02:30.2]} 17... O-O {[%clk 0:01:48.3]} 18. Qe4 {[%clk
0:02:30.1]} 18... Na5 {[%clk 0:01:25.6]} 19. Bd3 {[%clk 0:01:24.8]} 19... g6
{[%clk 0:01:15.9]} 20. Nd4 {[%clk 0:01:23.9]} 20... Rfe8 {[%clk 0:01:08.4]} 21.
Rb1 {[%clk 0:01:17.9]} 21... e5 {[%clk 0:00:51.2]} 22. Nf5 {[%clk 0:01:18]}
22... Nf6 {[%clk 0:00:42.4]} 23. Nh6+ {[%clk 0:01:14.3]} 23... Kg7 {[%clk
0:00:41.3]} 24. Nf5+ {[%clk 0:01:00.5]} 24... Kh8 {[%clk 0:00:27.7]} 25. Qg2
{[%clk 0:00:26.9]} 25... gxf5 {[%clk 0:00:27.1]} 26. Bxf5 {[%clk 0:00:27.1]}
26... Rcd8 {[%clk 0:00:26.2]} 27. b4 {[%clk 0:00:24.1]} 27... Nc4 {[%clk
0:00:25.7]} 28. Bd3 {[%clk 0:00:24.3]} 28... Nd2 {[%clk 0:00:21.8]} 29. f5
{[%clk 0:00:22.5]} 29... e4 {[%clk 0:00:19.8]} 30. Bc2 {[%clk 0:00:21.9]} 30...
Nxb1 {[%clk 0:00:20.2]} 31. Bxb1 {[%clk 0:00:22.8]} 31... Be5 {[%clk 0:00:20.4]}
32. Qc2 {[%clk 0:00:18.2]} 32... Rd3 {[%clk 0:00:20.3]} 0-1

[Event "*** SCC Grand Prix: Titled Tuesday Blitz"]
[Site "Chess.com"]
[Date "2020.08.04"]
[Round "10"]
[White "DryCounty"]
[Black "serena-maria"]
[Result "1-0"]
[WhiteElo "2569"]
[BlackElo "2267"]
[TimeControl "180+1"]
[EndTime "15:37:51 PDT"]
[Termination "DryCounty won on time"]

1. e4 {[%clk 0:03:00.9]} 1... c5 {[%clk 0:02:58.6]} 2. Nf3 {[%clk 0:03:00.6]}
2... d6 {[%clk 0:02:58.9]} 3. d4 {[%clk 0:03:00.6]} 3... cxd4 {[%clk 0:02:59.8]}
4. Nxd4 {[%clk 0:03:01.2]} 4... Nf6 {[%clk 0:03:00.4]} 5. Nc3 {[%clk 0:03:01.8]}
5... g6 {[%clk 0:03:01.1]} 6. Be2 {[%clk 0:03:01.8]} 6... Bg7 {[%clk 0:03:01.4]}
7. O-O {[%clk 0:03:02.3]} 7... O-O {[%clk 0:03:02]} 8. Nb3 {[%clk 0:03:02.8]}
8... Nc6 {[%clk 0:03:02.3]} 9. Bg5 {[%clk 0:03:03.1]} 9... Be6 {[%clk
0:02:58.8]} 10. f4 {[%clk 0:03:02.3]} 10... Qc8 {[%clk 0:02:58.2]} 11. Kh1
{[%clk 0:03:01.6]} 11... Rd8 {[%clk 0:02:57.9]} 12. Bf3 {[%clk 0:02:59.4]} 12...
Bc4 {[%clk 0:02:47.3]} 13. Re1 {[%clk 0:02:58.6]} 13... d5 {[%clk 0:02:32.3]}
14. e5 {[%clk 0:02:56.5]} 14... Ne4 {[%clk 0:02:31.1]} 15. Bh4 {[%clk
0:02:24.2]} 15... Bxb3 {[%clk 0:02:26]} 16. axb3 {[%clk 0:02:21]} 16... g5
{[%clk 0:01:51.2]} 17. Nxd5 {[%clk 0:02:15.9]} 17... gxh4 {[%clk 0:01:39.9]} 18.
Bxe4 {[%clk 0:02:15.7]} 18... e6 {[%clk 0:01:38.4]} 19. Qh5 {[%clk 0:01:19]}
19... exd5 {[%clk 0:01:37.8]} 20. Bxh7+ {[%clk 0:01:13.8]} 20... Kf8 {[%clk
0:01:38.2]} 21. Bf5 {[%clk 0:01:07.7]} 21... Qc7 {[%clk 0:01:35.4]} 22. e6
{[%clk 0:00:57.9]} 22... Re8 {[%clk 0:01:20.8]} 23. Qxh4 {[%clk 0:00:38.3]}
23... Nd4 {[%clk 0:01:03.7]} 24. Bd3 {[%clk 0:00:30.5]} 24... Rxe6 {[%clk
0:00:43.9]} 25. Rf1 {[%clk 0:00:30.6]} 25... Rh6 {[%clk 0:00:34.1]} 26. Qg5
{[%clk 0:00:27]} 26... Rd8 {[%clk 0:00:24.1]} 27. Rxa7 {[%clk 0:00:23.5]} 27...
Ne6 {[%clk 0:00:22.4]} 28. Qg4 {[%clk 0:00:17.4]} 28... Bd4 {[%clk 0:00:18.3]}
29. Raa1 {[%clk 0:00:14]} 29... Ke7 {[%clk 0:00:17]} 30. Rae1 {[%clk 0:00:09.2]}
30... Kf8 {[%clk 0:00:06.3]} 31. h3 {[%clk 0:00:08.3]} 31... Bxb2 {[%clk
0:00:04.3]} 32. f5 {[%clk 0:00:07.7]} 32... Ng7 {[%clk 0:00:01.9]} 33. Qg5
{[%clk 0:00:07.2]} 1-0

[Event "*** SCC Grand Prix: Titled Tuesday Blitz"]
[Site "Chess.com"]
[Date "2020.08.04"]
[Round "10"]
[White "BogdanDeac"]
[Black "XDPS"]
[Result "1-0"]
[WhiteElo "2776"]
[BlackElo "2690"]
[TimeControl "180+1"]
[EndTime "15:37:54 PDT"]
[Termination "BogdanDeac won on time"]

1. e4 {[%clk 0:03:00.9]} 1... e5 {[%clk 0:02:59.8]} 2. Nf3 {[%clk 0:02:59.8]}
2... Nc6 {[%clk 0:02:59.8]} 3. Bb5 {[%clk 0:02:59.7]} 3... a6 {[%clk 0:02:59.3]}
4. Ba4 {[%clk 0:02:59.7]} 4... d6 {[%clk 0:02:59.5]} 5. O-O {[%clk 0:02:58.8]}
5... Bd7 {[%clk 0:02:59.8]} 6. d4 {[%clk 0:02:58.5]} 6... Nxd4 {[%clk
0:02:59.5]} 7. Bxd7+ {[%clk 0:02:57.9]} 7... Qxd7 {[%clk 0:03:00.4]} 8. Nxd4
{[%clk 0:02:58.4]} 8... exd4 {[%clk 0:03:01.3]} 9. Qxd4 {[%clk 0:02:59.1]} 9...
Nf6 {[%clk 0:03:02]} 10. b3 {[%clk 0:02:59.6]} 10... Be7 {[%clk 0:03:01.1]} 11.
Bb2 {[%clk 0:02:59.8]} 11... O-O {[%clk 0:03:01.5]} 12. c4 {[%clk 0:03:00.3]}
12... Rfe8 {[%clk 0:03:00.6]} 13. Nc3 {[%clk 0:03:00.1]} 13... c6 {[%clk
0:03:00.8]} 14. Rad1 {[%clk 0:02:59.1]} 14... Rad8 {[%clk 0:03:01.2]} 15. Rfe1
{[%clk 0:02:58.5]} 15... b5 {[%clk 0:02:57.8]} 16. Ne2 {[%clk 0:02:57.1]} 16...
Qb7 {[%clk 0:02:47.2]} 17. Ng3 {[%clk 0:02:55.3]} 17... Bf8 {[%clk 0:02:30.8]}
18. f3 {[%clk 0:02:42.6]} 18... bxc4 {[%clk 0:02:25.6]} 19. Qxc4 {[%clk
0:02:40.3]} 19... d5 {[%clk 0:02:25.4]} 20. Qc2 {[%clk 0:02:39.3]} 20... Nd7
{[%clk 0:02:17.6]} 21. exd5 {[%clk 0:02:38.4]} 21... cxd5 {[%clk 0:02:17.7]} 22.
Bd4 {[%clk 0:02:36.3]} 22... Rc8 {[%clk 0:02:13.4]} 23. Qf5 {[%clk 0:02:34.8]}
23... Nc5 {[%clk 0:02:08.1]} 24. Rxe8 {[%clk 0:02:26.7]} 24... Rxe8 {[%clk
0:02:09]} 25. Bf2 {[%clk 0:02:26.9]} 25... Rd8 {[%clk 0:02:02.8]} 26. Ne2 {[%clk
0:02:26.6]} 26... Ne6 {[%clk 0:02:02.6]} 27. Nd4 {[%clk 0:02:26.6]} 27... Qd7
{[%clk 0:02:00.1]} 28. Re1 {[%clk 0:02:22.9]} 28... Nxd4 {[%clk 0:01:13.5]} 29.
Qxd7 {[%clk 0:02:21.7]} 29... Nxf3+ {[%clk 0:01:14.1]} 30. gxf3 {[%clk
0:02:21.2]} 30... Rxd7 {[%clk 0:01:15]} 31. Re8 {[%clk 0:02:20.1]} 31... d4
{[%clk 0:01:15.3]} 32. Kf1 {[%clk 0:02:19.8]} 32... f6 {[%clk 0:01:15.3]} 33.
Ke2 {[%clk 0:02:12.6]} 33... d3+ {[%clk 0:01:13.9]} 34. Kd1 {[%clk 0:02:11.7]}
34... Kf7 {[%clk 0:01:13.5]} 35. Ra8 {[%clk 0:02:11.5]} 35... Bd6 {[%clk
0:01:02.4]} 36. h3 {[%clk 0:02:04.9]} 36... Re7 {[%clk 0:00:59.7]} 37. Rxa6
{[%clk 0:02:02.9]} 37... Re2 {[%clk 0:00:28.9]} 38. Rxd6 {[%clk 0:02:01.1]}
38... Rxf2 {[%clk 0:00:29.4]} 39. a4 {[%clk 0:02:01.4]} 39... Rxf3 {[%clk
0:00:29.9]} 40. a5 {[%clk 0:02:01.3]} 40... d2 {[%clk 0:00:27.7]} 41. b4 {[%clk
0:02:00.8]} 41... Rxh3 {[%clk 0:00:23.7]} 42. a6 {[%clk 0:02:00.3]} 42... Ra3
{[%clk 0:00:23.6]} 43. b5 {[%clk 0:02:00.2]} 43... h5 {[%clk 0:00:24.1]} 44.
Rd7+ {[%clk 0:01:51.9]} 44... Kg6 {[%clk 0:00:19.9]} 45. Kxd2 {[%clk 0:01:49.1]}
45... h4 {[%clk 0:00:20.3]} 46. Ke2 {[%clk 0:01:49.1]} 46... h3 {[%clk 0:00:16]}
47. Kf2 {[%clk 0:01:48.2]} 47... Ra2+ {[%clk 0:00:16.5]} 48. Kg1 {[%clk
0:01:47.4]} 48... f5 {[%clk 0:00:12.2]} 49. a7 {[%clk 0:01:40.7]} 49... f4
{[%clk 0:00:12.5]} 50. b6 {[%clk 0:01:40.5]} 50... f3 {[%clk 0:00:12.7]} 51. Rd1
{[%clk 0:01:39.2]} 51... f2+ {[%clk 0:00:06.1]} 52. Kh1 {[%clk 0:01:14.9]} 52...
Re2 {[%clk 0:00:06.7]} 53. a8=Q {[%clk 0:01:11.4]} 53... Re1+ {[%clk 0:00:07.2]}
54. Kh2 {[%clk 0:01:10.7]} 54... f1=Q {[%clk 0:00:02.4]} 55. Qc6+ {[%clk
0:01:10.1]} 55... Kh7 {[%clk 0:00:02.8]} 56. Qc2+ {[%clk 0:01:09.5]} 56... Kh8
{[%clk 0:00:01.5]} 57. Rd8+ {[%clk 0:01:08.3]} 1-0

[Event "*** SCC Grand Prix: Titled Tuesday Blitz"]
[Site "Chess.com"]
[Date "2020.08.04"]
[Round "10"]
[White "frederiksvane"]
[Black "AndrewDGreen"]
[Result "1-0"]
[WhiteElo "2573"]
[BlackElo "2402"]
[TimeControl "180+1"]
[EndTime "15:37:57 PDT"]
[Termination "frederiksvane won by checkmate"]

1. e4 {[%clk 0:03:00.9]} 1... c5 {[%clk 0:02:59.7]} 2. Nf3 {[%clk 0:03:01.1]}
2... g6 {[%clk 0:02:59.2]} 3. c3 {[%clk 0:02:54.9]} 3... d5 {[%clk 0:02:58.5]}
4. exd5 {[%clk 0:02:53.2]} 4... Qxd5 {[%clk 0:02:59.4]} 5. d4 {[%clk 0:02:53.1]}
5... Bg7 {[%clk 0:02:59.4]} 6. Be3 {[%clk 0:02:47.9]} 6... cxd4 {[%clk
0:02:58.3]} 7. cxd4 {[%clk 0:02:47.8]} 7... Qa5+ {[%clk 0:02:50.8]} 8. Nc3
{[%clk 0:02:45.6]} 8... Nh6 {[%clk 0:02:49.8]} 9. Bc4 {[%clk 0:02:24]} 9... O-O
{[%clk 0:02:45.3]} 10. O-O {[%clk 0:02:23.5]} 10... Bg4 {[%clk 0:02:43.6]} 11.
h3 {[%clk 0:02:20.5]} 11... Bxf3 {[%clk 0:02:38.9]} 12. Qxf3 {[%clk 0:02:21.4]}
12... Nc6 {[%clk 0:02:37.7]} 13. Rad1 {[%clk 0:02:06.7]} 13... Nf5 {[%clk
0:02:35.6]} 14. Qe4 {[%clk 0:01:48.7]} 14... Rac8 {[%clk 0:02:25.2]} 15. Bb3
{[%clk 0:01:23]} 15... Rfd8 {[%clk 0:02:18.4]} 16. d5 {[%clk 0:01:18.6]} 16...
Nxe3 {[%clk 0:02:10.4]} 17. fxe3 {[%clk 0:00:55.8]} 17... Ne5 {[%clk 0:02:10.5]}
18. d6 {[%clk 0:00:56.2]} 18... Rxd6 {[%clk 0:01:57.3]} 19. Rxd6 {[%clk
0:00:54.7]} 19... exd6 {[%clk 0:01:58.2]} 20. Qxb7 {[%clk 0:00:52.9]} 20... Qc7
{[%clk 0:01:47.9]} 21. Qe4 {[%clk 0:00:49.5]} 21... Qc5 {[%clk 0:01:38.9]} 22.
Nd5 {[%clk 0:00:45.8]} 22... Re8 {[%clk 0:01:37]} 23. Kh1 {[%clk 0:00:34.8]}
23... h5 {[%clk 0:01:34.1]} 24. Qa4 {[%clk 0:00:32.4]} 24... Rc8 {[%clk
0:01:26.4]} 25. Ne7+ {[%clk 0:00:29.7]} 25... Kh7 {[%clk 0:01:24.3]} 26. Nxc8
{[%clk 0:00:27.1]} 26... Qxc8 {[%clk 0:01:25.2]} 27. Qxa7 {[%clk 0:00:24.2]}
27... f5 {[%clk 0:01:19.7]} 28. Qb6 {[%clk 0:00:17.3]} 28... Qf8 {[%clk
0:01:18.4]} 29. a4 {[%clk 0:00:15.8]} 29... Qf6 {[%clk 0:01:18.5]} 30. a5 {[%clk
0:00:14]} 30... Qh4 {[%clk 0:01:18.9]} 31. Qxd6 {[%clk 0:00:11.8]} 31... Qg3
{[%clk 0:01:18.1]} 32. a6 {[%clk 0:00:09.2]} 32... Qxe3 {[%clk 0:01:18.2]} 33.
Rd1 {[%clk 0:00:04.8]} 33... Qxb3 {[%clk 0:01:16.4]} 34. Qd5 {[%clk 0:00:02.7]}
34... Qg3 {[%clk 0:01:15]} 35. a7 {[%clk 0:00:02.1]} 35... Ng4 {[%clk
0:00:59.7]} 36. hxg4 {[%clk 0:00:02]} 36... Be5 {[%clk 0:01:00.3]} 37. Kg1
{[%clk 0:00:02.3]} 37... Qe3+ {[%clk 0:00:55.8]} 38. Kf1 {[%clk 0:00:02.8]}
38... Qf4+ {[%clk 0:00:55.1]} 39. Qf3 {[%clk 0:00:03.2]} 39... Qc4+ {[%clk
0:00:53.1]} 40. Kg1 {[%clk 0:00:03.8]} 40... Bd4+ {[%clk 0:00:51.3]} 41. Kh1
{[%clk 0:00:02.2]} 41... hxg4 {[%clk 0:00:47.6]} 42. Qb7+ {[%clk 0:00:01.2]}
42... Kh6 {[%clk 0:00:47]} 43. a8=Q {[%clk 0:00:02.1]} 43... Qe2 {[%clk
0:00:42.6]} 44. Qf8+ {[%clk 0:00:02.3]} 44... Kh5 {[%clk 0:00:41.3]} 45. Qh7+
{[%clk 0:00:02.9]} 45... Kg5 {[%clk 0:00:41.8]} 46. Qfe7+ {[%clk 0:00:03.7]}
46... Bf6 {[%clk 0:00:40.2]} 47. Qxe2 {[%clk 0:00:03.5]} 47... g3 {[%clk
0:00:40.4]} 48. Qe3+ {[%clk 0:00:03.7]} 48... Kg4 {[%clk 0:00:40.7]} 49. Qf3+
{[%clk 0:00:03.7]} 49... Kg5 {[%clk 0:00:41]} 50. Qxg3# {[%clk 0:00:04.2]} 1-0

[Event "*** SCC Grand Prix: Titled Tuesday Blitz"]
[Site "Chess.com"]
[Date "2020.08.04"]
[Round "10"]
[White "abfchess"]
[Black "Cambek64"]
[Result "0-1"]
[WhiteElo "2165"]
[BlackElo "2367"]
[TimeControl "180+1"]
[EndTime "15:38:01 PDT"]
[Termination "Cambek64 won by resignation"]

1. d4 {[%clk 0:03:00.9]} 1... d6 {[%clk 0:02:59.9]} 2. Nf3 {[%clk 0:03:01.3]}
2... Nf6 {[%clk 0:02:59.8]} 3. Bg5 {[%clk 0:03:01.7]} 3... Nbd7 {[%clk
0:02:58.4]} 4. Nbd2 {[%clk 0:03:01.9]} 4... g6 {[%clk 0:02:58.6]} 5. c3 {[%clk
0:03:02.2]} 5... Bg7 {[%clk 0:02:58.9]} 6. e4 {[%clk 0:03:02.2]} 6... e5 {[%clk
0:02:58.4]} 7. dxe5 {[%clk 0:03:02.2]} 7... dxe5 {[%clk 0:02:55.6]} 8. Be2
{[%clk 0:03:01.7]} 8... h6 {[%clk 0:02:48.7]} 9. Bh4 {[%clk 0:02:31.7]} 9... Qe7
{[%clk 0:02:49]} 10. Qc2 {[%clk 0:02:31.4]} 10... g5 {[%clk 0:02:42.7]} 11. Bg3
{[%clk 0:02:31.3]} 11... Nh5 {[%clk 0:02:40.4]} 12. O-O {[%clk 0:02:29.5]} 12...
Nf4 {[%clk 0:02:38.2]} 13. Bc4 {[%clk 0:02:11]} 13... Nb6 {[%clk 0:02:35.6]} 14.
Bb3 {[%clk 0:02:10.1]} 14... O-O {[%clk 0:02:33.3]} 15. a4 {[%clk 0:02:06.2]}
15... a5 {[%clk 0:02:32.1]} 16. Rfe1 {[%clk 0:02:02.1]} 16... Be6 {[%clk
0:02:29.6]} 17. Bxe6 {[%clk 0:01:59.9]} 17... Qxe6 {[%clk 0:02:23.4]} 18. b4
{[%clk 0:01:53.3]} 18... Rfd8 {[%clk 0:02:19.2]} 19. bxa5 {[%clk 0:01:16.4]}
19... Rxa5 {[%clk 0:02:16.2]} 20. Nb3 {[%clk 0:01:14.6]} 20... Ra7 {[%clk
0:01:52.7]} 21. a5 {[%clk 0:01:10.5]} 21... Nc4 {[%clk 0:01:47.7]} 22. a6 {[%clk
0:00:57.7]} 22... bxa6 {[%clk 0:01:41.5]} 23. Bxf4 {[%clk 0:00:50]} 23... exf4
{[%clk 0:01:34.3]} 24. Red1 {[%clk 0:00:45.6]} 24... Rxd1+ {[%clk 0:01:23.3]}
25. Qxd1 {[%clk 0:00:46.5]} 25... Ra8 {[%clk 0:01:12.8]} 26. Nfd4 {[%clk
0:00:37.1]} 26... Qxe4 {[%clk 0:01:10.8]} 27. Nc5 {[%clk 0:00:35.1]} 27... Qd5
{[%clk 0:01:08.4]} 28. Rxa6 {[%clk 0:00:18.8]} 28... Rxa6 {[%clk 0:01:06.7]} 29.
Nxa6 {[%clk 0:00:19.7]} 29... c5 {[%clk 0:01:02]} 30. Nc7 {[%clk 0:00:18.8]}
30... Qd7 {[%clk 0:01:00.4]} 31. Qb3 {[%clk 0:00:18.5]} 31... cxd4 {[%clk
0:00:56]} 32. Qxc4 {[%clk 0:00:18.8]} 32... dxc3 {[%clk 0:00:54.7]} 33. h3
{[%clk 0:00:18.7]} 33... Be5 {[%clk 0:00:49.2]} 34. Nd5 {[%clk 0:00:18.4]} 34...
Qd6 {[%clk 0:00:46.5]} 35. Nxc3 {[%clk 0:00:18.5]} 35... f3 {[%clk 0:00:32.7]}
36. Qc8+ {[%clk 0:00:18.2]} 36... Kg7 {[%clk 0:00:31.1]} 37. gxf3 {[%clk
0:00:18.7]} 37... Qd3 {[%clk 0:00:26.9]} 38. Ne4 {[%clk 0:00:17.7]} 38... Qxf3
{[%clk 0:00:25.7]} 39. Qc4 {[%clk 0:00:17.3]} 39... Qxh3 {[%clk 0:00:23.8]} 40.
Qd5 {[%clk 0:00:17.7]} 40... Qf5 {[%clk 0:00:21.3]} 41. Nc5 {[%clk 0:00:17.9]}
41... Bh2+ {[%clk 0:00:20.4]} 0-1